{"text_format":"3","workbook":"xlsx","n_sheets":2,"sheets":["Start","Bryllupsbudsjett"],"read":"whole","date_system":"1900"}

{"sheet":"Start","index":0,"n_rows":7,"n_cols":2,"rows_kept":7}
[null,"OM DENNE MALEN"]
[null,"Bruk denne malen til å logge de faktiske bryllupsutgiftene for ulike artikler, og spor dem mot budsjetterte beløp."]
[null,"Angi utgifter til klær, dekorasjoner, gaver, blomster, musikk, fotografering, bryllupsfest, skrivemateriell, transport og diverse artikler i respektive tabeller."]
[null,"Totale beregnede og totale faktiske utgifter beregnes automatisk."]
[null,"Obs! "]
[null,"Det er lagt inn flere instruksjoner i kolonne A i BRYLLUPSBUDSJETT-regnearket. Denne teksten har blitt skjult med vilje. Hvis du vil fjerne teksten, velger du kolonne A og deretter SLETT. Hvis du vil vise teksten, velger du kolonne A og endrer deretter skriftfarge."]
[null,"Hvis du vil finne ut mer om tabeller, trykker du på SKIFT og deretter på F10 i en tabell. Velg alternativet TABELL, og velg deretter ALTERNATIV TEKST."]

{"sheet":"Bryllupsbudsjett","index":1,"n_rows":93,"n_cols":4,"rows_kept":93,"merged":[[0,1,0,3],[2,1,2,3],[6,1,6,3],[15,1,15,3],[25,1,25,3],[34,1,34,3],[43,1,43,3],[50,1,50,3],[59,1,59,3],[68,1,68,3],[77,1,77,3],[85,1,85,3]]}
[null,"BRYLLUPSBUDSJETT"]
[]
[null,"TOTALE UTGIFTER "]
[null,"Vare ","Estimert","Faktisk"]
[null,"Totale utgifter ",{"$f":"SUM(Klær[[#Totals],[Estimert]],Dekorasjoner[[#Totals],[Estimert]],Gaver[[#Totals],[Estimert]],Blomster[[#Totals],[Estimert]],Musikk[[#Totals],[Estimert]],Fotografi[[#Totals],[Estimert]],Bryllupsfest[[#Totals],[Estimert]],StationeryAndPrinting[[#Totals],[Estimert]],Transport[[#Totals],[Estimert]],OtherExpenses[[#Totals],[Estimert]])","v":0},{"$f":"SUM(Klær[[#Totals],[Faktisk]],Dekorasjoner[[#Totals],[Faktisk]],Gaver[[#Totals],[Faktisk]],Blomster[[#Totals],[Faktisk]],Musikk[[#Totals],[Faktisk]],Fotografi[[#Totals],[Faktisk]],Bryllupsfest[[#Totals],[Faktisk]],StationeryAndPrinting[[#Totals],[Faktisk]],Transport[[#Totals],[Faktisk]],OtherExpenses[[#Totals],[Faktisk]],)","v":0}]
[]
[null,"KLÆR"]
[null,"Vare ","Estimert","Faktisk"]
[null,"Forlovelsesring"]
[null,"Gifteringer"]
[null,"Brudekjole"]
[null,"Slør/hodepynt"]
[null,"Annet:"]
[null,"Klær totalt",{"$f":"SUBTOTAL(109,Klær[Estimert])","v":0},{"$f":"SUBTOTAL(109,Klær[Faktisk])","v":0}]
[]
[null,"DEKORASJONER"]
[null,"Vare ","Estimert","Faktisk"]
[null,"Sløyfer til kirkebenker / andre sitteplasser"]
[null,"Bordpynt (ikke medregnet blomster)"]
[null,"Lys"]
[null,"Belysning"]
[null,"Ballonger"]
[null,"Annet:"]
[null,"Dekorasjoner totalt",{"$f":"SUBTOTAL(109,Dekorasjoner[Estimert])","v":0},{"$f":"SUBTOTAL(109,Dekorasjoner[Faktisk])","v":0}]
[]
[null,"GAVER"]
[null,"Vare ","Estimert","Faktisk"]
[null,"Deltakere"]
[null,"Brudepar"]
[null,"Foreldre"]
[null,"Opplesere / andre deltakere"]
[null,"Annet:"]
[null,"Gaver totalt",{"$f":"SUBTOTAL(109,Gaver[Estimert])","v":0},{"$f":"SUBTOTAL(109,Gaver[Faktisk])","v":0}]
[]
[null,"BLOMSTER"]
[null,"Vare ","Estimert","Faktisk"]
[null,"Buketter"]
[null,"Knapphullsblomster"]
[null,"Brystbuketter"]
[null,"Vielse"]
[null,"Annet:"]
[null,"Blomster totalt",{"$f":"SUBTOTAL(109,Blomster[Estimert])","v":0},{"$f":"SUBTOTAL(109,Blomster[Faktisk])","v":0}]
[]
[null,"MUSIKK"]
[null,"Vare ","Estimert","Faktisk"]
[null,"Musikere til vielsen"]
[null,"Band/DJ til bryllupsfesten"]
[null,"Annet:"]
[null,"Musikk totalt",{"$f":"SUBTOTAL(109,Musikk[Estimert])","v":0},{"$f":"SUBTOTAL(109,Musikk[Faktisk])","v":0}]
[]
[null,"FOTOGRAFI"]
[null,"Vare ","Estimert","Faktisk"]
[null,"Offisielle bilder"]
[null,"Uformelle bilder"]
[null,"Ekstra kopier"]
[null,"Fotoalbum"]
[null,"Annet:"]
[null,"Fotografering totalt",{"$f":"SUBTOTAL(109,Fotografi[Estimert])","v":0},{"$f":"SUBTOTAL(109,Fotografi[Faktisk])","v":0}]
[]
[null,"BRYLLUPSFEST "]
[null,"Vare ","Estimert","Faktisk"]
[null,"Leie av lokaler"]
[null,"Bord og stoler"]
[null,"Mat"]
[null,"Duker"]
[null,"Annet:"]
[null,"Total bryllupsfest (utenom musikk og dekorasjoner)",{"$f":"SUBTOTAL(109,Bryllupsfest[Estimert])","v":0},{"$f":"SUBTOTAL(109,Bryllupsfest[Faktisk])","v":0}]
[]
[null,"SKRIVEPAPIR OG TRYKK"]
[null,"Vare ","Estimert","Faktisk"]
[null,"Invitasjoner"]
[null,"Kunngjøringer"]
[null,"Takkekort"]
[null,"Personlig skrivepapir"]
[null,"Annet:"]
[null,"Skrivepapir/trykk totalt",{"$f":"SUBTOTAL(109,StationeryAndPrinting[Estimert])","v":0},{"$f":"SUBTOTAL(109,StationeryAndPrinting[Faktisk])","v":0}]
[]
[null,"TRANSPORT"]
[null,"Vare ","Estimert","Faktisk"]
[null,"Limousiner/kjøretøy"]
[null,"Parkering"]
[null,"Drosjer"]
[null,"Annet:"]
[null,"Transport totalt",{"$f":"SUBTOTAL(109,Transport[Estimert])","v":0},{"$f":"SUBTOTAL(109,Transport[Faktisk])","v":0}]
[]
[null,"ANDRE UTGIFTER"]
[null,"Vare ","Estimert","Faktisk"]
[null,"Forrettende prest"]
[null,"Avgift for kirke/vielsessted"]
[null,"Bryllupskoordinator"]
[null,"Generalprøve for middag"]
[null,"Annet:"]
[null,"Andre utgifter totalt",{"$f":"SUBTOTAL(109,OtherExpenses[Estimert])","v":0},{"$f":"SUBTOTAL(109,OtherExpenses[Faktisk])","v":0}]